fUSD/lending_fUSD_20240506
["ID","MTS","AMOUNT","RATE_DAILY","PERIOD"]
[326494808,1715009450746,-500.0,0.00024657,2]
[326494809,1715009450756,-564.04,0.00024657,5]
[326494810,1715009450770,-564.04,0.00024657,6]
[326494811,1715009450781,-564.04,0.00024657,7]
[326494812,1715009450791,-998.24,0.00024657,2]
[326494813,1715009450803,-564.04,0.00024657,8]
[326494814,1715009450813,-564.04,0.00024657,9]
[326494815,1715009450823,-564.04,0.00024657,10]
[326494816,1715009450832,-564.04,0.00024657,11]
[326494817,1715009450846,-1038.76,0.00024657,2]
[326494818,1715009450856,-500.0,0.00024657,2]
[326494819,1715009450866,-564.04,0.00024657,12]
[326494820,1715009450876,-564.04,0.00024657,13]
[326494821,1715009450885,-564.04,0.00024657,14]
[326494822,1715009450895,-564.04,0.00024657,15]
[326494823,1715009450906,-500.0,0.00024657,2]
[326494824,1715009450915,-564.04,0.00024657,16]
[326494825,1715009450924,-564.04,0.00024657,17]
[326494826,1715009450934,-500.0,0.00024657,2]
[326494827,1715009450943,-564.04,0.00024657,18]
[326494828,1715009450953,-564.04,0.00024657,19]
[326494829,1715009450962,-564.04,0.00024657,20]
[326494830,1715009450975,-2503.63,0.00024657,2]
[326494831,1715009450985,-500.0,0.00024657,2]
[326494832,1715009450995,-500.0,0.00024657,2]
[326494833,1715009451005,-523.27,0.00024657,2]
[326494834,1715009451014,-518.41,0.00024657,2]
[326494835,1715009451024,-500.0,0.00024657,2]
[326494836,1715009451034,-501.35,0.00024657,2]
[326494837,1715009451044,-732.49,0.00024657,2]
[326494838,1715009451053,-500.0,0.00024657,2]
[326494839,1715009451063,-649.94,0.00024657,2]
[326494840,1715009451072,-629.6,0.00024657,2]
[326494841,1715009451082,-500.0,0.00024657,2]
[326494842,1715009451091,-779.53,0.00024657,2]
[326494843,1715009451100,-500.0,0.00024657,2]
[326494844,1715009451110,-500.0,0.00024657,2]
[326494845,1715009451120,-1267.21,0.00024657,2]
[326494846,1715009451129,-500.0,0.00024657,2]
[326494847,1715009451139,-1866.13,0.00024657,2]
[326494848,1715009451149,-500.0,0.00024657,2]
[326494849,1715009451158,-1139.05,0.00024657,2]
[326494850,1715009451168,-500.0,0.00024657,2]
[326494851,1715009451178,-500.0,0.00024657,2]
[326494852,1715009451188,-500.0,0.00024657,2]
[326494853,1715009451197,-1996.58,0.00024657,2]
[326494854,1715009451208,-554.47,0.00024657,2]
[326494855,1715009451218,-500.0,0.00024657,2]
[326494856,1715009451230,-526.42,0.00024657,2]
[326494857,1715009451240,-500.0,0.00024657,2]
[326494858,1715009451249,-2928.16,0.00024657,2]
[326494859,1715009451259,-500.0,0.00024657,2]
[326494860,1715009451269,-500.0,0.00024657,2]
[326494861,1715009451279,-500.0,0.00024657,2]
[326494862,1715009451289,-839.38,0.00024657,2]
[326494863,1715009451298,-500.0,0.00024657,2]
[326494864,1715009451307,-719.04,0.00024657,2]
[326494865,1715009451317,-500.0,0.00024657,2]
[326494866,1715009451326,-606.29,0.00024657,2]
[326494867,1715009451335,-500.0,0.00024657,2]
[326494868,1715009451345,-1935.71,0.00024657,2]
[326494869,1715009451355,-500.0,0.00024657,2]
[326494870,1715009451365,-2073.82,0.00024657,2]
[326494871,1715009451375,-1247.5,0.00024657,2]
[326494872,1715009451385,-503.26362366,0.00024657,2]
[326494873,1715009451394,-814.85,0.00024657,2]
[326494874,1715009451404,-2650.88,0.00024657,2]
[326494875,1715009451414,-645.49,0.00024657,2]
[326494876,1715009451423,-500.0,0.00024657,2]
[326494877,1715009451432,-541.61,0.00024657,2]
[326494878,1715009451441,-500.0,0.00024657,2]
[326494879,1715009451451,-511.72,0.00024657,2]
[326494880,1715009451460,-505.25932693,0.00024657,2]
[326494881,1715009451469,-500.0,0.00024657,2]
[326494882,1715009451481,-500.0,0.00024657,2]
[326494883,1715009451490,-500.0,0.00024657,2]
[326494884,1715009451500,-7196.3,0.00024657,2]
[326494885,1715009451509,-1087.06,0.00024657,2]
[326494886,1715009451519,-1967.21,0.00024657,2]
[326494887,1715009451528,-1228.65,0.00024657,2]
[326494888,1715009451537,-500.0,0.00024657,2]
[326494889,1715009451548,-2210.84,0.00024657,2]
[326494890,1715009451557,-1159.53,0.00024657,2]
[326494891,1715009451567,-500.0,0.00024657,2]
[326494892,1715009451576,-630.47,0.00024657,2]
[326494893,1715009451585,-500.0,0.00024657,2]
[326494894,1715009451594,-555.84,0.00024657,2]
[326494895,1715009451604,-695.62,0.00024657,2]
[326494896,1715009451613,-840.15,0.00024657,2]
[326494897,1715009451623,-1796.48,0.00024657,2]
[326494898,1715009451632,-934.08,0.00024657,2]
[326494899,1715009451642,-1640.34,0.00024657,2]
[326494900,1715009451651,-500.0,0.00024657,2]
[326494901,1715009451660,-513.69,0.00024657,2]
[326494902,1715009451670,-500.0,0.00024657,2]
[326494903,1715009451679,-2888.22,0.00024657,2]
[326494904,1715009451688,-500.0,0.00024657,2]
[326494905,1715009451697,-1344.41,0.00024657,2]
[326494906,1715009451707,-506.33168212,0.00024657,2]
[326494907,1715009451716,-500.0,0.00024657,2]
[326494908,1715009451726,-1185.26,0.00024657,2]
[326494909,1715009451741,-1900.56,0.00024657,2]
[326494910,1715009451751,-755.3,0.00024657,2]
[326494911,1715009451768,-665.94,0.00024657,2]
[326494912,1715009451777,-3962.73,0.00024657,2]
[326494913,1715009451787,-500.0,0.00024657,2]
[326494914,1715009451798,-500.0,0.00024657,2]
[326494915,1715009451808,-1278.15,0.00024657,2]
[326494916,1715009451817,-500.0,0.00024657,2]
[326494917,1715009451827,-517.3,0.00024657,2]
[326494918,1715009451836,-16580.38,0.00024657,2]
[326494919,1715009451846,-3483.4,0.00024657,2]
[326494920,1715009451856,-500.0,0.00024657,2]
[326494921,1715009451866,-1339.23,0.00024657,2]
[326494922,1715009451876,-1634.93,0.00024657,2]
[326494923,1715009451885,-500.0,0.00024657,2]
[326494924,1715009451895,-664.55,0.00024657,2]
[326494925,1715009451906,-719.59482,0.00024657,7]
[326494926,1715009451915,-151.0,0.00024657,7]
[326494927,1715009451925,-151.0,0.00024657,7]
[326494928,1715009451936,-151.0,0.00024657,7]
[326494929,1715009451945,-249.89740791,0.00024657,2]
[326494930,1715009451955,-151.0,0.00024657,7]
[326494931,1715009451965,-151.0,0.00024657,7]
[326494932,1715009451975,-755.11,0.00024657,2]
[326494933,1715009451985,-500.0,0.00024657,2]
[326494934,1715009451995,-151.0,0.00024657,7]
[326494935,1715009452005,-986.05,0.00024657,2]
[326494936,1715009452015,-505.58128946,0.00024657,2]
[326494937,1715009452025,-719.59482,0.00024657,7]
[326494938,1715009452035,-500.0,0.00024657,2]
[326494939,1715009452044,-500.0,0.00024657,2]
[326494940,1715009452054,-1621.97,0.00024657,2]
[326494941,1715009452064,-151.138433,0.00024657,7]
[326494942,1715009452074,-719.59482,0.00024657,7]
[326494943,1715009452083,-707.01,0.00024657,2]
[326494944,1715009452093,-4466.22,0.00024657,2]
[326494945,1715009452103,-1373.86,0.00024657,2]
[326494946,1715009452114,-719.59482,0.00024657,7]
[326494947,1715009452124,-507.55,0.00024657,2]
[326494948,1715009452134,-719.59482,0.00024657,7]
[326494949,1715009452146,-719.59482,0.00024657,7]
[326494950,1715009452156,-2217.62,0.00024657,2]
[326494951,1715009452167,-719.59482,0.00024657,7]
[326494952,1715009452177,-500.0,0.00024657,2]
[326494953,1715009452187,-719.59482,0.00024657,7]
[326494954,1715009452197,-719.59482,0.00024657,7]
[326494955,1715009452211,-719.59482,0.00024657,7]
[326494956,1715009452220,-719.59482,0.00024657,7]
[326494957,1715009452232,-552.94,0.00024657,2]
[326494958,1715009452242,-655.66,0.00024657,2]
[326494959,1715009452252,-719.594814,0.00024657,7]
[326494960,1715009452261,-753.09,0.00024657,2]
[326494961,1715009452272,-909.79,0.00024657,2]
[326494962,1715009452282,-1486.8,0.00024657,2]
[326494963,1715009452292,-5014.18,0.00024657,2]
[326494964,1715009452383,-500.0,0.00024657,2]
[326494965,1715009452394,-799.64,0.00024657,2]
[326494966,1715009452403,-5307.55,0.00024657,2]
[326494967,1715009452412,-626.56,0.00024657,2]
[326494968,1715009452422,-10122.88,0.00024657,2]
[326494969,1715009452431,-4605.09,0.00024657,2]
[326494970,1715009452441,-504.90476368,0.00024657,2]
[326494971,1715009452451,-500.0,0.00024657,2]
[326494972,1715009452460,-1849.12,0.00024657,2]
[326494973,1715009452470,-210.49664596,0.00024657,2]
[326494974,1715009452481,-893.14,0.00024657,2]
[326494975,1715009452490,-505.62978038,0.00024657,2]
[326494976,1715009452499,-500.0,0.00024657,2]
[326494977,1715009452508,-1098.64,0.00024657,2]
[326494978,1715009452518,-2436.24,0.00024657,2]
[326494979,1715009452528,-198.28695595,0.00024657,2]
[326494980,1715009452539,-5996.4,0.00024657,2]
[326494981,1715009452548,-500.0,0.00024657,2]
[326494982,1715009452557,-151.0,0.00024657,7]
[326494983,1715009452567,-151.0,0.00024657,7]
[326494984,1715009452576,-151.0,0.00024657,7]
[326494985,1715009452585,-500.0,0.00024657,2]
[326494986,1715009452594,-151.0,0.00024657,7]
[326494987,1715009452605,-151.0,0.00024657,7]
[326494988,1715009452616,-151.0,0.00024657,7]
[326494989,1715009452626,-507.48727653,0.00024657,2]
[326494990,1715009452636,-619.34,0.00024657,2]
[326494991,1715009452645,-500.0,0.00024657,2]
[326494992,1715009452655,-835.88,0.00024657,2]
[326494993,1715009452665,-151.0,0.00024657,7]
[326494994,1715009452674,-151.0,0.00024657,7]
[326494995,1715009452683,-151.0,0.00024657,7]
[326494996,1715009452693,-184.793955,0.00024657,7]
[326494997,1715009452702,-1258.91,0.00024657,2]
[326494998,1715009452712,-1988.56,0.00024657,2]
[326494999,1715009452723,-500.0,0.00024657,2]
[326495000,1715009452733,-643.80740141,0.00024657,2]
[326495001,1715009452742,-606.84,0.00024657,2]
[326495002,1715009452752,-3462.8,0.00024657,2]
[326495003,1715009452766,-1354.68,0.00024657,2]
[326495004,1715009452775,-537.44,0.00024657,2]
[326495005,1715009452785,-1855.78,0.00024657,2]
[326495006,1715009452794,-10724.08,0.00024657,2]
[326495007,1715009452805,-500.0,0.00024657,2]
[326495008,1715009452815,-756.06,0.00024657,2]
[326495009,1715009452825,-10278.55,0.00024657,2]
[326495010,1715009452835,-500.0,0.00024657,2]
[326495011,1715009452846,-505.78453746,0.00024657,2]
[326495012,1715009452856,-635.51,0.00024657,2]
[326495013,1715009452865,-9517.78,0.00024657,2]
[326495014,1715009452875,-834.68,0.00024657,2]
[326495015,1715009452884,-500.0,0.00024657,2]
[326495016,1715009452893,-503.62,0.00024657,2]
[326495017,1715009452903,-533.5,0.00024657,2]
[326495018,1715009452914,-1009.7,0.00024657,2]
[326495019,1715009452923,-17627.26,0.00024657,2]
[326495020,1715009452933,-3541.79,0.00024657,2]
[326495021,1715009452943,-500.0,0.00024657,2]
[326495022,1715009452952,-500.0,0.00024657,2]
[326495023,1715009452961,-1031.93,0.00024657,2]
[326495024,1715009452971,-500.0,0.00024657,2]
[326495025,1715009452984,-2894.05,0.00024657,2]
[326495026,1715009452993,-2914.16,0.00024657,2]
[326495027,1715009453002,-500.0,0.00024657,2]
[326495028,1715009453011,-500.0,0.00024657,2]
[326495029,1715009453036,-4625.65,0.00024657,2]
[326495030,1715009453053,-4090.24,0.00024657,2]
[326495031,1715009453100,-6634.8,0.00024657,2]
[326495032,1715009453110,-500.0,0.00024657,2]
[326495033,1715009453120,-1120.33,0.00024657,2]
[326495034,1715009453129,-500.0,0.00024657,2]
[326495035,1715009453139,-500.0,0.00024657,2]
[326495036,1715009453147,-538.83,0.00024657,2]
[326495037,1715009453157,-11995.93,0.00024657,2]
[326495038,1715009453167,-6090.63,0.00024657,2]
[326495039,1715009453176,-500.0,0.00024657,2]
[326495040,1715009453186,-1569.49,0.00024657,2]
[326495041,1715009453195,-48255.03,0.00024657,2]
[326495042,1715009453205,-3233.04,0.00024657,2]
[326495043,1715009453214,-3238.07,0.00024657,2]
[326495044,1715009453230,-500.0,0.00024657,2]
[326495045,1715009453276,-3755.96,0.00024657,2]
[326495046,1715009453286,-500.0,0.00024657,2]
[326495047,1715009453296,-2750.25,0.00024657,2]
[326495048,1715009453305,-15270.98,0.00024657,2]
[326495049,1715009453314,-786.29,0.00024657,2]
[326495050,1715009453323,-500.0,0.00024657,2]
[326495051,1715009453334,-2617.25,0.00024657,2]
[326495052,1715009453343,-2908.2,0.00024657,2]
[326495053,1715009453353,-1164.59,0.00024657,2]
[326495054,1715009453363,-500.0,0.00024657,2]
[326495055,1715009453374,-1731.61,0.00024657,2]
[326495056,1715009453384,-1174.56,0.00024657,2]
[326495057,1715009453395,-500.0,0.00024657,2]
[326495058,1715009453404,-2390.14,0.00024657,2]
[326495059,1715009453414,-520.16385363,0.00024657,2]
[326495060,1715009453424,-500.0,0.00024657,2]
[326495061,1715009453434,-650.57,0.00024657,2]
[326495062,1715009453443,-518.73476623,0.00024657,2]
[326495063,1715009453453,-1260.33,0.00024657,2]
[326495064,1715009453463,-1621.23,0.00024657,2]
[326495065,1715009453472,-3507.22,0.00024657,2]
[326495066,1715009453483,-6450.09,0.00024657,2]
[326495067,1715009453493,-2782.76,0.00024657,2]
[326495068,1715009453502,-1148.86,0.00024657,2]
[326495069,1715009453512,-500.0,0.00024657,2]
[326495070,1715009453521,-500.0,0.00024657,2]
[326495071,1715009453531,-32277.96,0.00024657,2]
[326495072,1715009453540,-6568.18,0.00024657,2]
[326495073,1715009453550,-1664.67,0.00024657,2]
[326495074,1715009453559,-3671.09,0.00024657,2]
[326495075,1715009453570,-500.0,0.00024657,2]
[326495076,1715009453579,-3357.62,0.00024657,2]
[326495077,1715009453588,-605.71605187,0.00024657,2]
[326495078,1715009453598,-4169.19,0.00024657,2]
[326495079,1715009453607,-500.0,0.00024657,2]
[326495080,1715009453616,-1644.7,0.00024657,2]
[326495081,1715009453625,-506.82478772,0.00024657,2]
[326495082,1715009453635,-2640.54,0.00024657,2]
[326495083,1715009453645,-500.0,0.00024657,2]
[326495084,1715009453654,-849.46,0.00024657,2]
[326495085,1715009453663,-3026.07,0.00024657,2]
[326495086,1715009453673,-766.54,0.00024657,2]
[326495087,1715009453682,-500.0,0.00024657,2]
[326495088,1715009453692,-2572.04,0.00024657,2]
[326495089,1715009453702,-505.20019955,0.00024657,2]
[326495090,1715009453711,-2708.48,0.00024657,2]
[326495091,1715009453720,-12534.57,0.00024657,2]
[326495092,1715009453730,-1200.34,0.00024657,2]
[326495093,1715009453739,-500.0,0.00024657,2]
[326495094,1715009453748,-3337.55,0.00024657,2]
[326495095,1715009453759,-503.52944065,0.00024657,2]
[326495096,1715009453770,-522.18,0.00024657,2]
[326495097,1715009453779,-500.0,0.00024657,2]
[326495098,1715009453788,-1149.01,0.00024657,2]
[326495099,1715009453797,-587.43,0.00024657,2]
[326495100,1715009453809,-500.0,0.00024657,2]
[326495101,1715009453821,-500.0,0.00024657,2]
[326495102,1715009453830,-2083.02,0.00024657,2]
[326495103,1715009453840,-500.0,0.00024657,2]
[326495104,1715009453850,-590.05,0.00024657,2]
[326495105,1715009453860,-9239.37,0.00024657,2]
[326495106,1715009453869,-500.0,0.00024657,2]
[326495107,1715009453878,-1340.91,0.00024657,2]
[326495108,1715009453887,-1634.69,0.00024657,2]
[326495109,1715009453897,-1066.24,0.00024657,2]
[326495110,1715009453906,-2044.84,0.00024657,2]
[326495111,1715009453915,-617.32061701,0.00024657,2]
[326495112,1715009453924,-968.0,0.00024657,2]
[326495113,1715009453934,-681.99,0.00024657,2]
[326495114,1715009453943,-1753.87,0.00024657,2]
[326495115,1715009453952,-1303.96,0.00024657,2]
[326495116,1715009453962,-596.85,0.00024657,2]
[326495117,1715009453971,-2145.81,0.00024657,2]
[326495118,1715009453982,-1091.07,0.00024657,2]
[326495119,1715009453991,-500.0,0.00024657,2]
[326495120,1715009454001,-195.44565002,0.00024657,2]
[326495121,1715009454010,-6364.94,0.00024657,2]
[326495122,1715009454020,-500.0,0.00024657,2]
[326495123,1715009454029,-649.55466157,0.00024657,2]
[326495124,1715009454039,-961.65,0.00024657,2]
[326495125,1715009454048,-500.0,0.00024657,2]
[326495126,1715009454058,-1363.01,0.00024657,2]
[326495127,1715009454067,-2889.4,0.00024657,2]
[326495128,1715009454076,-500.0,0.00024657,2]
[326495129,1715009454086,-839.76,0.00024657,2]
[326495130,1715009454095,-500.0,0.00024657,2]
[326495131,1715009454105,-1108.58,0.00024657,2]
[326495132,1715009454114,-6879.87,0.00024657,2]
[326495133,1715009454123,-2147.8,0.00024657,2]
[326495134,1715009454133,-3578.02,0.00024657,2]
[326495135,1715009454142,-829.22,0.00024657,2]
[326495136,1715009454151,-3639.98,0.00024657,2]
[326495137,1715009454160,-177.200354,0.00024657,7]
[326495138,1715009454171,-2766.97,0.00024657,2]
[326495139,1715009454181,-312.3664266,0.00024657,2]
[326495140,1715009454190,-500.0,0.00024657,2]
[326495141,1715009454199,-3320.0,0.00024657,2]
[326495142,1715009454208,-155.22049817,0.00024657,2]
[326495143,1715009454219,-1968.46,0.00024657,2]
[326495144,1715009454229,-1622.03,0.00024657,2]
[326495145,1715009454238,-500.0,0.00024657,2]
[326495146,1715009454248,-500.0,0.00024657,2]
[326495147,1715009454257,-4678.76,0.00024657,2]
[326495148,1715009454267,-703.65,0.00024657,2]
[326495149,1715009454279,-4483.25,0.00024657,2]
[326495150,1715009454288,-500.0,0.00024657,2]
[326495151,1715009454298,-3347.44,0.00024657,2]
[326495152,1715009454308,-500.0,0.00024657,2]
[326495153,1715009454318,-500.0,0.00024657,2]
[326495154,1715009454327,-546.18,0.00024657,2]
[326495155,1715009454336,-544.79,0.00024657,2]
[326495156,1715009454346,-500.0,0.00024657,2]
[326495157,1715009454356,-924.19,0.00024657,2]
[326495158,1715009454365,-477.7767817,0.00024657,2]
[326495159,1715009454374,-1416.8,0.00024657,2]
[326495160,1715009454384,-500.0,0.00024657,2]
[326495161,1715009454395,-3497.48,0.00024657,2]
[326495162,1715009454405,-6890.02,0.00024657,2]
[326495163,1715009454415,-1743.63,0.00024657,2]
[326495164,1715009454424,-1832.86,0.00024657,2]
[326495165,1715009454434,-500.0,0.00024657,2]
[326495166,1715009454444,-5482.55,0.00024657,2]
[326495167,1715009454454,-3187.77,0.00024657,2]
[326495168,1715009454465,-3557.67,0.00024657,2]
[326495169,1715009454477,-506.84770695,0.00024657,2]
[326495170,1715009454487,-2301.72,0.00024657,2]
[326495171,1715009454496,-500.0,0.00024657,2]
[326495172,1715009454506,-500.0,0.00024657,2]
[326495173,1715009454516,-500.0,0.00024657,2]
[326495174,1715009454526,-151.39450195,0.00024657,2]
[326495175,1715009454536,-500.0,0.00024657,2]
[326495176,1715009454546,-3177.23,0.00024657,2]
[326495177,1715009454556,-500.0,0.00024657,2]
[326495178,1715009454566,-3439.46,0.00024657,2]
[326495179,1715009454575,-3798.9,0.00024657,2]
[326495180,1715009454584,-500.0,0.00024657,2]
[326495181,1715009454594,-750.36,0.00024657,2]
[326495182,1715009454608,-496.37739548,0.00024657,2]
[326495183,1715009454618,-2399.44,0.00024657,2]
[326495184,1715009454628,-1785.64,0.00024657,2]
[326495185,1715009454637,-793.41,0.00024657,2]
[326495186,1715009454647,-3209.2,0.00024657,2]
[326495187,1715009454657,-3506.65,0.00024657,2]
[326495188,1715009454667,-7826.43,0.00024657,2]
[326495189,1715009454677,-1225.61,0.00024657,2]
[326495190,1715009454687,-924.96,0.00024657,2]
[326495191,1715009454697,-3658.82,0.00024657,2]
[326495192,1715009454708,-910.61,0.00024657,2]
[326495193,1715009454718,-509.27307411,0.00024657,2]
[326495194,1715009454730,-500.0,0.00024657,2]
[326495195,1715009454740,-3041.98,0.00024657,2]
[326495196,1715009454750,-502.88866661,0.00024657,2]
[326495197,1715009454762,-2249.25,0.00024657,2]
[326495198,1715009454772,-500.0,0.00024657,2]
[326495199,1715009454782,-11394.11,0.00024657,2]
[326495200,1715009454791,-976.98,0.00024657,2]
[326495201,1715009454802,-10963.05,0.00024657,2]
[326495202,1715009454811,-842.84,0.00024657,2]
[326495203,1715009454821,-2668.94,0.00024657,2]
[326495204,1715009454831,-500.0,0.00024657,2]
[326495205,1715009454842,-500.0,0.00024657,2]
[326495206,1715009454852,-534.47910599,0.00024657,2]
[326495207,1715009454861,-3371.14,0.00024657,2]
[326495208,1715009454872,-6478.66,0.00024657,2]
[326495209,1715009454881,-500.0,0.00024657,2]
[326495210,1715009454891,-3050.27,0.00024657,2]
[326495211,1715009454901,-38384.45,0.00024657,2]
[326495212,1715009454911,-803.29,0.00024657,2]
[326495213,1715009454921,-500.0,0.00024657,2]
[326495214,1715009454930,-500.0,0.00024657,2]
[326495215,1715009454940,-4033.2,0.00024657,2]
[326495216,1715009454950,-500.0,0.00024657,2]
[326495217,1715009454960,-500.0,0.00024657,2]
[326495218,1715009454970,-751.42,0.00024657,2]
[326495219,1715009454980,-4399.04,0.00024657,2]
[326495220,1715009454990,-500.0,0.00024657,2]
[326495221,1715009455000,-500.0,0.00024657,2]
[326495222,1715009455010,-500.0,0.00024657,2]
[326495223,1715009455019,-4781.53,0.00024657,2]
[326495224,1715009455029,-502.32414492,0.00024657,2]
[326495225,1715009455040,-3019.86,0.00024657,2]
[326495226,1715009455051,-18794.31,0.00024657,2]
[326495227,1715009455061,-3216.06,0.00024657,2]
[326495228,1715009455071,-500.0,0.00024657,2]
[326495229,1715009455081,-500.0,0.00024657,2]
[326495230,1715009455091,-679.95,0.00024657,2]
[326495231,1715009455101,-759.68,0.00024657,2]
[326495232,1715009455110,-734.31,0.00024657,2]
[326495233,1715009455120,-500.45,0.00024657,2]
[326495234,1715009455129,-1966.97,0.00024657,2]
[326495235,1715009455140,-500.0,0.00024657,2]
[326495236,1715009455150,-1226.74,0.00024657,2]
[326495237,1715009455160,-918.05,0.00024657,2]
[326495238,1715009455170,-500.0,0.00024657,2]
[326495239,1715009455180,-1188.08,0.00024657,2]
[326495240,1715009455190,-817.1,0.00024657,2]
[326495241,1715009455200,-1498.71,0.00024657,2]
[326495242,1715009455209,-1227.88,0.00024657,2]
[326495243,1715009455219,-12076.36,0.00024657,2]
[326495244,1715009455230,-3985.19,0.00024657,2]
[326495245,1715009455239,-500.0,0.00024657,2]
[326495246,1715009455249,-1108.44,0.00024657,2]
[326495247,1715009455259,-500.0,0.00024657,2]
[326495248,1715009455269,-500.0,0.00024657,2]
[326495249,1715009455279,-997.89,0.00024657,2]
[326495250,1715009455288,-2440.46,0.00024657,2]
[326495251,1715009455298,-500.0,0.00024657,2]
[326495252,1715009455308,-1696.37,0.00024657,2]
[326495253,1715009455317,-3092.69,0.00024657,2]
[326495254,1715009455328,-649.46093796,0.00024657,2]
[326495255,1715009455337,-577.88,0.00024657,2]
[326495256,1715009455348,-1186.92,0.00024657,2]
[326495257,1715009455358,-500.0,0.00024657,2]
[326495258,1715009455369,-6012.8,0.00024657,2]
[326495259,1715009455379,-1103.43,0.00024657,2]
[326495260,1715009455389,-2472.58,0.00024657,2]
[326495261,1715009455401,-500.0,0.00024657,2]
[326495262,1715009455411,-500.0,0.00024657,2]
[326495263,1715009455421,-500.0,0.00024657,2]
[326495264,1715009455434,-3496.92,0.00024657,2]
[326495265,1715009455443,-1906.79,0.00024657,2]
[326495266,1715009455456,-511.05,0.00024657,2]
[326495267,1715009455466,-25757.13,0.00024657,2]
[326495268,1715009455475,-978.15,0.00024657,2]
[326495269,1715009455485,-846.73,0.00024657,2]
[326495270,1715009455495,-1607.27,0.00024657,2]
[326495271,1715009455505,-5501.3,0.00024657,2]
[326495272,1715009455515,-1422.68,0.00024657,2]
[326495273,1715009455525,-839.68,0.00024657,2]
[326495274,1715009455536,-585.17,0.00024657,2]
[326495275,1715009455546,-3218.42,0.00024657,2]
[326495276,1715009455556,-3218.42,0.00024657,3]
[326495277,1715009455566,-3876.61,0.00024657,2]
[326495278,1715009455577,-3218.42,0.00024657,4]
[326495279,1715009455587,-1301.77,0.00024657,2]
[326495280,1715009455597,-3218.42,0.00024657,5]
[326495281,1715009455607,-3218.42,0.00024657,6]
[326495282,1715009455617,-602.97,0.00024657,2]
[326495283,1715009455627,-3218.42,0.00024657,7]
[326495284,1715009455637,-3218.42,0.00024657,8]
[326495285,1715009455647,-3218.42,0.00024657,9]
[326495286,1715009455657,-500.0,0.00024657,2]
[326495287,1715009455667,-3218.42,0.00024657,10]
[326495288,1715009455677,-3218.42,0.00024657,11]
[326495289,1715009455688,-201.28914956,0.00024657,2]
[326495290,1715009455700,-1545.64,0.00024657,2]
[326495291,1715009455712,-3218.42,0.00024657,12]
[326495292,1715009455723,-2486.37,0.00024657,2]
[326495293,1715009455734,-3218.42,0.00024657,13]
[326495294,1715009455745,-3218.42,0.00024657,14]
[326495295,1715009455755,-4575.64,0.00024657,2]
[326495296,1715009455770,-3218.42,0.00024657,15]
[326495297,1715009455780,-3218.42,0.00024657,16]
[326495298,1715009455791,-3218.42,0.00024657,17]
[326495299,1715009455802,-2441.28,0.00024657,2]
[326495300,1715009455813,-1493.66,0.00024657,2]
[326495301,1715009455823,-3218.42,0.00024657,18]
[326495302,1715009455835,-500.0,0.00024657,2]
[326495303,1715009455847,-2908.25,0.00024657,2]
[326495304,1715009455859,-500.0,0.00024657,2]
[326495305,1715009455869,-500.0,0.00024657,2]
[326495306,1715009455879,-658.83,0.00024657,2]
[326495307,1715009455890,-9225.67,0.00024657,2]